Cogmind - Beta 14 @@@ ROGUE MODE // 2025.03.07 @ 22:47:27 Player: Rudrot Result: Smashed by cave-in Performance ------------- Evolutions (0) 0 Regions Visited (2) 400 Robots Destroyed (38) 190 Value Destroyed (1094) 1094 Prototype IDs (4) 80 Alien Tech Used (0) 0 Bonus (-163) -163 TOTAL SCORE: 1601 Bonus ------- Friendly Fire -163 Cogmind --------- Core Integrity 0/250 Matter 108/300 Energy 100/100 System Corruption 8% Temperature Cool (1) Movement Walking (130) Location -10/Subcaves Parts ------- > --- POWER (1) -------- (None) > --- PROPULSION (2) --- Improved Aluminum Leg Makeshift Leg > --- UTILITY (2) ------ Medium Storage Unit > --- WEAPON (2) ------- (None) > --- INVENTORY (10) --- Subdweller Power Source Subdweller Optics Subdweller Optics Core Shielding Subdweller Machine Gun Subdweller Machine Gun Subdweller Machine Gun Peak State ------------ > --- POWER ------------ Subdweller Power Source > --- PROPULSION ------- Improved Aluminum Leg Makeshift Leg > --- UTILITY ---------- Medium Storage Unit High-capacity Matter Pod > --- WEAPON ----------- Subdweller Machine Gun Battle Cannon > --- INVENTORY -------- Ion Engine Improved Aluminum Leg Improved Aluminum Leg Subdweller Optics Core Shielding Subdweller Machine Gun Subdweller Machine Gun Grenade Launcher Grenade Launcher [Rating: 15] Favorites ----------- Power Ion Engine Engine Ion Engine Propulsion Improved Aluminum Leg Leg Improved Aluminum Leg Utility Medium Storage Unit Device Structural Scanner Storage Medium Storage Unit Weapon Grenade Launcher Ballistic Gun Subdweller Machine Gun Ballistic Cannon Battle Cannon Launcher Grenade Launcher Build | -11 -10 -10 ------- Run | Yrd Mat Sub Slots Evolved . | . . . Power . | . . . Propulsion . | . . . Utility . | . . . Weapon . | . . . Parts Attached 32 | 6 14 12 Power 4 | 1 1 2 Engine 4 | 1 1 2 Core . | . . . Reactor . | . . . Propulsion 7 | 2 2 3 Treads . | . . . Leg 7 | 2 2 3 Wheel . | . . . Hover . | . . . Flight . | . . . Utility 4 | 1 3 . Device 1 | . 1 . Storage 3 | 1 2 . Processor . | . . . Hackware . | . . . Protection . | . . . Artifact . | . . . Weapon 17 | 2 8 7 Energy Gun . | . . . Energy Cannon . | . . . Ballistic Gun 7 | 2 2 3 Ballistic Cannon 1 | . . 1 Launcher 9 | . 6 3 Special Weapon . | . . . Impact Weapon . | . . . Slashing Weapon . | . . . Piercing Weapon . | . . . Special Melee Weapon . | . . . Unidentified Prototypes . | . . . Parts Lost 9 | . . 9 Power 1 | . . 1 Propulsion 2 | . . 2 Utility 1 | . . 1 Weapon 5 | . . 5 Highest Loss Streak 4 | . . 4 To Critical Strikes . | . . . Average Slot Usage (%) 98 | . 99 98 Engine 14 | . 14 14 Leg 27 | . 28 27 Device 2 | . 8 . Storage 25 | . 18 28 Ballistic Gun 9 | . 14 7 Ballistic Cannon 5 | . . 7 Launcher 13 | . 13 13 Peak Build Rating 15 | 6 11 15 Average Rating 11 | 4 9 12 On Entrance 5 | . 6 11 Naked Turns . | . . . Heaviest Build 30 | 11 25 30 Greatest Support 33 | 20 26 33 Greatest Overweight (x) 1 | . . 1 Average Overweight (x) . | . . . Largest Inventory Capacity 10 | 8 10 10 Average Capacity 9 | 6 9 10 Most Carried 10 | 1 10 10 Average Carried 8 | . 9 8 Final Capacity 10 | 8 10 10 Final Carried 10 | 1 10 7 Class Distribution -------------------- 100% | Mutant Dominant Class ---------------- Mutant | -10/Materials Mutant | -10/Subcaves Resources | -11 -10 -10 ----------- Run | Yrd Mat Sub Matter Collected 1520 | 251 537 732 Remotely . | . . . Salvage Created 843 | . 328 515 Parts 67 | . 31 36 Haulers Intercepted . | . . . Recyclers Shooed . | . . . Parts Field Recycled . | . . . Retrieved Matter . | . . . Parts Self-Destructed 21 | . . 21 Prevented . | . . . Kills | -11 -10 -10 ------- Run | Yrd Mat Sub Combat Hostiles Destroyed 30 | . 9 21 Guns 6 | . 1 5 Cannons 5 | . . 5 AOE 19 | . 8 11 Classes Destroyed 7 | . 6 1 Worker 3 | . 3 . Builder 1 | . 1 . Recycler 1 | . 1 . Watcher 2 | . 2 . Swarmer 6 | . 3 3 Grunt 8 | . 6 2 Subdweller 16 | . . 16 Thug 1 | . . 1 Best Kill Streak 5 | . 5 3 Combat Bots Only 3 | . 2 3 Max Kills in Single Turn 2 | . 2 1 Gunslinging . | . . . Exploded 2 | . 2 1 Melee . | . . . Uniques/NPCs Destroyed . | . . . Combat | -11 -10 -10 -------- Run | Yrd Mat Sub Hostile Shots Fired 66 | . 25 41 Missed 26 | . 11 15 Damage Taken 1365 | . 196 1169 Core 306 | . 26 280 Absorbed by Shields . | . . . Core Remaining (%) 100 | 100 . . Volleys Fired 135 | . 23 112 Largest 2 | . 2 2 Hottest 70 | . 53 70 Shots Fired 168 | . 39 129 Gun 43 | . 24 19 Cannon 32 | . . 32 Launcher 93 | . 15 78 Special . | . . . Kinetic 78 | . 24 54 Thermal . | . . . Explosive 90 | . 15 75 Electromagnetic . | . . . Robot Hit Streak 20 | . 6 20 Robot Miss Streak 3 | . 3 2 Penetration Max . | . . . Secondary Targets . | . . . Shots Hit Robots 66 | . 22 44 Core Hits 72 | . 25 47 Critical Kills 1 | . . 1 Critical Parts Destroyed 1 | . . 1 Critical Strikes 3 | . . 3 Destroy 3 | . . 3 Melee Attacks . | . . . Impact . | . . . Slashing . | . . . Piercing . | . . . Sneak Attacks . | . . . Combat Hostiles . | . . . Follow-up Attacks . | . . . Damage Inflicted 3529 | . 1113 2416 Guns 453 | . 199 254 Cannons 325 | . . 325 Explosions 2744 | . 907 1837 Melee . | . . . Ramming 7 | . 7 . Kinetic 778 | . 199 579 Thermal . | . . . Explosive 2744 | . 907 1837 Electromagnetic . | . . . Impact . | . . . Slashing . | . . . Piercing . | . . . Highest Corruption . | . . . Average Corruption . | . . . Corruption Purged . | . . . Corruption Blocked . | . . . Overload Shots . | . . . Overflow Damage 6 | . 6 . Projectiles . | . . . Explosions 6 | . 6 . Melee . | . . . Knockbacks 4 | . . 4 Impact . | . . . Kinetic 4 | . . 4 Secondary . | . . . Self-Inflicted Damage 71 | . 30 41 Shots 5 | . 1 4 Rammed . | . . . Targets Rammed 2 | . 2 . Kicked 2 | . 2 . Crushed . | . . . Highest Temperature 33 | . 33 . Average Temperature 9 | . 9 . Received Heat Transfer 165 | . 108 57 Siege Activations . | . . . Robots Corrupted . | . . . Combat Hostiles . | . . . Parts Fried . | . . . Impact Corruptions . | . . . Robots Melted . | . . . Combat Hostiles . | . . . Parts Melted . | . . . Heat Transferred . | . . . Parts Sabotaged . | . . . Parts Stolen . | . . . Parts Stripped . | . . . Power Chain Reactions . | . . . Alert | -11 -10 -10 ------- Run | Yrd Mat Sub Peak Influence 259 | . 259 . Initial . | . . . Average 82 | . 87 . Maximum Alert Level 1 | . 1 . Low Security (%) 98 | 100 98 . Level 1 1 | . 1 . Level 2 . | . . . Level 3 . | . . . Level 4 . | . . . Level 5 . | . . . High Security . | . . . Max Security . | . . . Squads Dispatched 3 | . 3 . Investigation 1 | . 1 . Extermination . | . . . Reinforcement 2 | . 2 . Assault . | . . . Garrison . | . . . Intercept . | . . . Searches Triggered . | . . . Construction Impeded . | . . . Haulers Reinforced . | . . . Active Scanning Responses . | . . . Cargo Convoy Interrupts . | . . . Stealth | -11 -10 -10 --------- Run | Yrd Mat Sub Distress Signals 1 | . 1 . Communications Jammed . | . . . Distress Signals . | . . . Times Spotted 53 | . 14 39 Peak Tracking Total 5 | . 3 5 Tactical Retreats 2 | . 1 1 Traps | -11 -10 -10 ------- Run | Yrd Mat Sub Traps Triggered 3 | . 1 2 Indirectly . | . . . Trap Hack Attempts . | . . . Triggered . | . . . Disarmed . | . . . Reprogrammed . | . . . Reused . | . . . Traps Extracted . | . . . Installed . | . . . Triggered . | . . . Machines | -11 -10 -10 ---------- Run | Yrd Mat Sub Machines Disabled 5 | . 5 . Max in Single Turn 2 | . 2 . Machines Repaired . | . . . Machines Dismantled . | . . . Machines Sabotaged . | . . . Overloaded Fab Kills . | . . . Hacking | -11 -10 -10 --------- Run | Yrd Mat Sub Machines Accessed 7 | . 6 1 Terminals 6 | . 6 . Fabricators . | . . . Repair Stations . | . . . Recycling Units . | . . . Scanalyzers . | . . . Garrison Access . | . . . Total Hacks 29 | . 25 4 Successful 18 | . 14 4 Failed 11 | . 11 . Catastrophic 3 | . 3 . Database Lockouts . | . . . Manual 2 | . 1 1 Terminals 25 | . 25 . Fabricators . | . . . Repair Stations . | . . . Recycling Units . | . . . Scanalyzers . | . . . Garrison Access . | . . . Terminal Hacks 18 | . 14 4 Record 9 | . 5 4 Prototype ID Bank 2 | . 2 . Branch Access Points 1 | . 1 . Alert Level 1 | . 1 . Unreport Threat 1 | . 1 . Locate Traps 2 | . 2 . Maintenance Status 1 | . 1 . Security Status 1 | . 1 . Fabricator Hacks . | . . . Repair Station Hacks . | . . . Recycling Unit Hacks . | . . . Scanalyzer . | . . . Garrison Access Hacks . | . . . Unauthorized Hacks . | . . . Terminals . | . . . Fabricators . | . . . Repair Stations . | . . . Recycling Units . | . . . Scanalyzers . | . . . Garrison Access . | . . . Data Cores Recovered . | . . . Used . | . . . Hacking Detections 6 | . 6 . Full Trace Events 3 | . 3 . Feedback Events . | . . . Feedback Blocked . | . . . Robot Schematics Acquired . | . . . Robots Built . | . . . Authchips . | . . . Time . | . . . Total Robot Build Rating . | . . . Part Schematics Acquired . | . . . Parts Built . | . . . Authchips . | . . . Time . | . . . Total Part Build Rating . | . . . Parts Repaired . | . . . Time . | . . . Parts Recycled . | . . . Recycled Matter . | . . . Retrieved Matter . | . . . Retrieved Components . | . . . Parts Scanalyzed . | . . . Part Schematics Acquired . | . . . Parts Damaged . | . . . Bothacking | -11 -10 -10 ------------ Run | Yrd Mat Sub Used RIF Installer . | . . . Robots Hacked . | . . . Non-combat . | . . . Combat . | . . . Robot Hacks Applied . | . . . Relay Couplers Released . | . . . Fabnet Peak Effective % . | . . . Robots Rewired . | . . . Allies Hacked . | . . . Hacks Repelled . | . . . Allies | -11 -10 -10 -------- Run | Yrd Mat Sub Total Allies . | . . . Largest Group . | . . . Highest-Rated Group . | . . . Highest-Rated Ally . | . . . Total Orders . | . . . Ally Attacks . | . . . Total Damage . | . . . Kills . | . . . Allies Corrupted . | . . . Allies Melted . | . . . Intel | -11 -10 -10 ------- Run | Yrd Mat Sub Robot Analysis Total . | . . . Derelict Logs Recovered 2 | . . 2 Drone Launches . | . . . Drone Recoveries . | . . . Exploration | -11 -10 -10 ------------- Run | Yrd Mat Sub Turns Passed 4224 | 68 1194 2962 Spaces Moved 2985 | 51 907 2027 Core 4 | 4 . . Treads . | . . . Legs 2981 | 47 907 2027 Wheels . | . . . Hover . | . . . Flight . | . . . Fastest Speed 50 | 50 120 120 Average Speed 126 | 114 120 129 Slowest Speed 210 | 120 120 210 Overloaded Moves . | . . . Propulsion Burnouts . | . . . Robots Hopped . | . . . Cave-ins Triggered 1 | . . 1 Exploration Rate (%) 64 | 3 100 89 Regions Visited 2 Branch Regions 1 Pre-discovered Areas 1 | . . 1 Known Exits Taken . | . . . Unknown Exits Taken 2 | 1 1 . Scrap Searched 10 | . . 10 Spaces Dug 118 | . 5 113 Terrain Destroyed 611 | . 83 528 Melee . | . . . Projectile 1 | . . 1 AOE 610 | . 83 527 Terrain Rammed . | . . . Walls Destroyed . | . . . Machines Disabled . | . . . Actions | -11 -10 -10 --------- Run | Yrd Mat Sub Total 3272 | 57 976 2239 Wait 66 | . . 66 Move 2982 | 50 906 2026 Hop . | . . . Pick Up 27 | 1 16 10 Fast Attach 12 | 6 4 2 Attach 8 | . 2 6 Detach 3 | . 1 2 Swap 12 | . 8 4 Drop 25 | . 14 11 Fire 135 | . 23 112 Melee . | . . . Ram . | . . . Kick 2 | . 2 . Crush . | . . . Escape Stasis . | . . . Rewire . | . . . Trap . | . . . Miscellaneous . | . . . Route ------- -11/Scrapyard -10/Materials (discovered 6 exits: [*Mat x3] / *Min x2 / *Sub) -10/Subcaves (discovered 2 exits: [*Mat x2]) History --------- Turn | Location | Event 3 | -11/Scrapyard | Discovered new exit (range 15) 69 | -11/Scrapyard | Entered Materials 283 | -10/Materials | Discovered new exit (range 16) 300 | -10/Materials | Build established: Mutant 462 | -10/Materials | Discovered new exit (range 6) 599 | -10/Materials | Discovered new exit (range 10) 666 | -10/Materials | Discovered new exit (range 13) 1022 | -10/Materials | Discovered new exit (range 15) 1046 | -10/Materials | Identified exit to Mines 1263 | -10/Materials | Entered Subcaves 1335 | -10/Subcaves | Ambushed by swarm of Subdwellers 1341 | -10/Subcaves | Ambushed by Subdwellers from Twisted Machinery 1492 | -10/Subcaves | Ambushed by Subdwellers from Twisted Machinery 1584 | -10/Subcaves | Shifting Twisted Machinery released Sub. Machine Gun 1617 | -10/Subcaves | Shifting Twisted Machinery released Battle Cannon 1627 | -10/Subcaves | Learned Materials trap positions 2108 | -10/Subcaves | Shifting Twisted Machinery released Flamer 2109 | -10/Subcaves | Shifting Twisted Machinery released Sub. Power Source 2197 | -10/Subcaves | A swath of the cavern ceiling suddenly collapsed 2206 | -10/Subcaves | A swath of the cavern ceiling suddenly collapsed 2621 | -10/Subcaves | Discovered new exit (range 12) 2714 | -10/Subcaves | Visited Clippyterm 2718 | -10/Subcaves | Learned location of Deep Caves (-6) 2718 | -10/Subcaves | Learned Factory fabricator intel 2966 | -10/Subcaves | Discovered new exit (range 13) 3444 | -10/Subcaves | Ambushed by Subdweller buried in earth 3455 | -10/Subcaves | Ambushed by Subdweller buried in earth 3463 | -10/Subcaves | Disturbed a concealed Subdweller 3622 | -10/Subcaves | Ambushed by Subdweller buried in earth 3708 | -10/Subcaves | Ambushed by Subdweller buried in earth 3724 | -10/Subcaves | Ambushed by Subdweller buried in earth 3726 | -10/Subcaves | Ambushed by Subdweller buried in earth 3760 | -10/Subcaves | Disturbed a concealed Subdweller 3761 | -10/Subcaves | Core integrity fell below 50% 3781 | -10/Subcaves | Shifting Twisted Machinery released Shrapnel Trap 3938 | -10/Subcaves | Shifting Twisted Machinery released Sub. Optics 4066 | -10/Subcaves | Learned Materials terminal intel 4186 | -10/Subcaves | Ambushed by Subdweller buried in earth 4225 | -10/Subcaves | Crushed by falling debris 4225 | -10/Subcaves | Smashed by cave-in Last Messages --------------- Data stored: Materials terminal intel. 04102_ 2R-0N9(u) deconstructs Twisted Machinery. 04108_ Subatomizers dissect the Sub. Monowheel, destroying it. 04186_ M2-T8Z(R) destroyed. [Achievement: Dramatic Entrance] 04198_ Acquired 22 matter. 04204_ The unstable cave ceiling collapses. 04224_ Grenade Launcher destroyed. 04225_ PD-CR2(R): "NOSTUCKSUB!" 04225_ The unstable cave ceiling collapses. 04225_ Crushed by falling debris. [Achievement: Unlikely Earthworm] 04225_ Sub. Shrapnel Launcher destroyed. 04225_ System corrupted by crushing effect (+1). 04225_ Hcp. Matter Pod destroyed. 04225_ System corrupted by crushing effect (+3). 04225_ Ion Engine destroyed. 04225_ System corrupted by crushing effect (+4). Map ----- +----------------------------------------------------+ | ### ### ##????# ## ## #? | | = ### # " # #####???# ## ###? | | ### ## """## " ####### #???# ##?? | | ??## """ # ##????# #??## ### | | ???## """"## # #???## #?## ### # | | ????# ""### #??## ### ##?# # | | ##?## ##?#"" ##?# ## ## ##### ## | | ### ##?# ##?# #### ## ##? | | #?# ! #### #??## ##? | | #### ## ##???# ## #? | | ## #### ##????##### ### | | ### ##?# #### ##?????????###### # | | ### < #??# ##?## #?????????????# # | | ?# ##### #??# ######??????###???## # | | ?# ##### ##??## #??######??## #???# # | | ## ## ] #??## ##?## #### #??## # | | ## ### ###?# ##??# ## #### | | ## ## #? # ??# ## # | | ## ## ####?# #?# # # ## ## | | ### ;###???# ####### #? | | #?## ## ##???# ####?# #? | | #??# ## # ;;#????# # ### ## | | ###?# ####" ! ;##???## # | | ###???# ##??# # ;##### ##### | | #?????# ###???## ##;#; # ##???? | | ??????##???????# ## #@ #????? | | ???????????????# #& # #### #????? | | ???????????????## # # ## #??# ##????? | | ????????????????### #% #% #### #?????? | | ??????????????????# ## # # #?????? | | ??????????????????# # # ##?????? | | ??????????????????### ##??????? | | ???????????????????# ; ; ##???????? | | ??????????????????# ### ##????????? | | ??????????????????# ##?# #?????????? | | ??????????????????# #??# ##????????? | | ??????????????????# % ??## #????????? | | ??????????????????# # #??## ##????????? | | ??????????????????## ##??### # ########## | | ???????????????????### ###???## # # # # # | | ?????????????????????######??????# ## | | ?????????????????????????????????## # # | | ?????????????????????????????????# # ### | | ?????????????????????????????????# # " ### | | ????????????????????????????????### # # | | ???????????????????????????????## # ## # | | ???????????????????????????????# # ## # | | ???????????????????????????????# " # # # # # | | ???????????????????????????????## ### ## ## # | | ????????????????????????????????######## ## | +----------------------------------------------------+ Best States ------------- Heat Dissipation 25 Energy Generation 15 Energy Capacity 250 Matter Stores 500 Matter Capacity 500 Sight Range 16 Terrain Scan Density 10 Evasion (%) 55 Item Schematics ----------------- None Robot Schematics ------------------ None Fabricated ------------ Nothing Alien Tech Used ----------------- None Achievements -------------- Backstab Dramatic Entrance Everything Is Under Control Unlikely Earthworm Challenges ------------ None Game ------ Seed SlugWeightWell Manual? 0 Play Time 01:05:18 Cumulative 12.0 hours Start 2025.03.07 @ 21:09:35 End 2025.03.07 @ 22:47:27 Sessions 1 Manual Loads 0 Difficulty Rogue Special Mode None Game No. 6 Rogue 6 Adventurer 0 Explorer 0 Win Type - Total 0 Types 0/0/0/0/0/0/0/0/0 Lore% 4 Gallery% 8 Achievement% 12 Wizard Run 0 Options --------- Layout 1 ASCII 0 Keyboard 1 Movement Numpad Keybinds 0 Fullscreen 1 Font 24/Cog Map View 50x35 Zoom Use 0% Tactical HUD 1 Map Filters NONE Filters NONE Steam 1 RUN: 86c88976-4f1b-4373-9597-31a84ecfb3d1